Cogmind - Beta 17.1 @@@ ROGUE MODE // 2026.08.30 @ 14:57:29 Player: Finn Result: Destroyed by 5J-MAJ(R) with Subdweller Beam Cannon Performance ------------- Evolutions (0) 0 Regions Visited (2) 400 Robots Destroyed (28) 140 Value Destroyed (707) 707 Prototype IDs (14) 280 Alien Tech Used (0) 0 Bonus (0) 0 TOTAL SCORE: 1527 Bonus ------- None Cogmind --------- Core Integrity 0/250 Matter 298/300 Energy 178/180 System Corruption 0% Temperature Cool (9) Movement Rolling (115) Ox1 Location -10/Subcaves Parts ------- > --- POWER (1) -------- Meta Core > --- PROPULSION (2) --- Compact Wheel > --- UTILITY (2+1) ---- Small Storage Unit Signal Interpreter Transport Network Coupler (+) > --- WEAPON (2) ------- Subdweller Laser Subdweller Machine Gun > --- INVENTORY (8) ---- Subdweller Power Source Visual Processing Unit Subdweller Optics Tractor Beam Small Laser Light Assault Rifle Datajack Scrap Shield Fragment (48) Peak State ------------ > --- POWER ------------ Meta Core > --- PROPULSION ------- Wheel Compact Wheel Subdweller Monowheel > --- UTILITY ---------- Small Storage Unit Signal Interpreter Transport Network Coupler > --- WEAPON ----------- Subdweller Laser Subdweller Machine Gun Subdweller Machine Gun > --- INVENTORY -------- Subdweller Power Source Visual Processing Unit Subdweller Optics Tractor Beam Small Laser Light Assault Rifle Datajack [Rating: 27] Favorites ----------- Power Ion Engine Engine Ion Engine Power Core Meta Core Propulsion Light Treads Treads Light Treads Leg Aluminum Leg Wheel Compact Wheel Flight Unit Flight Unit Utility Small Storage Unit Device Tractor Beam Storage Small Storage Unit Processor Signal Interpreter Weapon Subdweller Machine Gun Energy Gun Subdweller Laser Ballistic Gun Subdweller Machine Gun Special Melee Weapon Datajack Build | -11 -10 -10 ------- Run | Yrd Mat Sub Slots Evolved . | . . . Power . | . . . Propulsion . | . . . Utility . | . . . Weapon . | . . . Parts Attached 28 | 10 7 11 Power 4 | 1 1 2 Engine 3 | 1 1 1 Core 1 | . . 1 Reactor . | . . . Propulsion 10 | 4 2 4 Treads 2 | 2 . . Leg 1 | . . 1 Wheel 5 | 2 . 3 Hover . | . . . Flight 2 | . 2 . Utility 5 | 2 2 1 Device 1 | 1 . . Storage 1 | 1 . . Processor 3 | . 2 1 Hackware . | . . . Protection . | . . . Artifact . | . . . Weapon 9 | 3 2 4 Energy Gun 4 | 2 . 2 Energy Cannon . | . . . Ballistic Gun 4 | 1 1 2 Ballistic Cannon . | . . . Launcher . | . . . Special Weapon . | . . . Impact Weapon . | . . . Slashing Weapon . | . . . Piercing Weapon . | . . . Special Melee Weapon 1 | . 1 . Unidentified Prototypes . | . . . Parts Lost 10 | . 5 5 Power 2 | . 1 1 Propulsion 4 | . 2 2 Utility . | . . . Weapon 4 | . 2 2 Highest Loss Streak 3 | . 3 2 To Critical Strikes . | . . . Average Backups 6 | 4 7 6 Power . | 1 . . Propulsion 1 | 2 3 . Utility 2 | . 1 3 Weapon 1 | 1 . 1 Tool/Special . | . . . Unused Backups 3 | . 1 2 Power . | . . . Propulsion 1 | . 1 . Utility 2 | . . 2 Weapon . | . . . Tool/Special . | . . . Average Slot Usage (%) 93 | . 96 90 Engine 8 | . 13 3 Core 3 | . . 7 Treads 8 | . 18 . Wheel 9 | . . 17 Flight 4 | . 6 3 Storage 12 | . 14 11 Processor 16 | . 13 18 Energy Gun 10 | . 7 12 Ballistic Gun 15 | . 18 13 Peak Build Rating 27 | 7 7 27 Average Rating 12 | 4 6 18 On Entrance 4 | . 7 6 Avg Prop Armor Cover (%) 5 | . 7 4 Naked Turns . | . . . Heaviest Build 23 | 15 15 23 Greatest Support 40 | 40 40 36 Greatest Overweight (x) 4 | 1 4 3 Average Overweight (x) . | . 1 . Largest Inventory Capacity 8 | 8 8 8 Average Capacity 7 | 7 8 8 Most Carried 8 | 8 8 8 Average Carried 7 | 5 7 7 Final Capacity 8 | 8 8 8 Final Carried 8 | 6 6 8 Class Distribution -------------------- 85% | Mutant 14% | Skirmisher Dominant Class ---------------- Mutant | -10/Materials Mutant | -10/Subcaves Resources | -11 -10 -10 ----------- Run | Yrd Mat Sub Matter Collected 810 | 275 240 295 Remotely 148 | 148 . . Salvage Created 920 | 94 494 332 Parts 57 | 3 36 18 Haulers Intercepted . | . . . Recyclers Shooed . | . . . Parts Field Recycled . | . . . Retrieved Matter . | . . . Parts Self-Destructed 8 | . . 8 Prevented . | . . . Parts Restored . | . . . Kills | -11 -10 -10 ------- Run | Yrd Mat Sub Combat Hostiles Destroyed 25 | . 15 10 Guns 25 | . 15 10 Classes Destroyed 6 | 1 4 1 Recycler 1 | 1 . . Operator 1 | . 1 . Watcher 1 | . 1 . Swarmer 10 | . 6 4 Grunt 9 | . 9 . Subdweller 6 | . . 6 Best Kill Streak 7 | 1 7 5 Combat Bots Only 7 | . 7 5 Max Kills in Single Turn 1 | 1 1 1 Gunslinging . | . . . Exploded . | . . . Melee . | . . . Uniques/NPCs Destroyed . | . . . Combat | -11 -10 -10 -------- Run | Yrd Mat Sub Hostile Shots Fired 172 | . 97 75 Missed 55 | . 30 25 Hits 117 | . 67 50 Projectile 117 | . 67 50 Critical Strikes 1 | . . 1 Damage Taken 1411 | . 710 701 Core 256 | . 104 152 Absorbed by Shields . | . . . Core Remaining (%) 100 | 100 . . Volleys Fired 135 | 1 85 49 Largest 3 | 2 2 3 Hottest 120 | 80 60 120 Shots Fired 254 | 2 156 96 Gun 254 | 2 156 96 Cannon . | . . . Launcher . | . . . Special . | . . . Kinetic 166 | . 112 54 Thermal 59 | 1 16 42 Explosive . | . . . Electromagnetic 29 | 1 28 . Robot Hit Streak 24 | 2 15 24 Robot Miss Streak 7 | . 7 3 Penetration Max . | . . . Secondary Targets 1 | . . 1 Max Gunslinging Chain 1 | . . 1 Shots Hit Robots 131 | 2 73 56 Core Hits 50 | 2 31 17 Critical Kills . | . . . Critical Parts Destroyed . | . . . Critical Strikes 1 | . 1 . Corrupt 1 | . 1 . Melee Attacks 6 | . 1 5 Impact . | . . . Slashing . | . . . Piercing . | . . . Sneak Attacks 1 | . 1 . Combat Hostiles . | . . . Follow-up Attacks . | . . . Damage Inflicted 1773 | 23 868 882 Guns 1773 | 23 868 882 Cannons . | . . . Explosions . | . . . Melee . | . . . Ramming . | . . . Kinetic 1007 | . 571 436 Thermal 544 | 10 88 446 Explosive . | . . . Electromagnetic 222 | 13 209 . Impact . | . . . Slashing . | . . . Piercing . | . . . Highest Corruption . | . . . Average Corruption . | . . . Corruption Purged . | . . . Corruption Blocked . | . . . Overload Shots . | . . . Overflow Damage . | . . . Projectiles . | . . . Explosions . | . . . Melee . | . . . Knockbacks . | . . . Impact . | . . . Kinetic . | . . . Secondary . | . . . Self-Inflicted Damage . | . . . Shots . | . . . Rammed 1 | . 1 . Targets Rammed 1 | . 1 . Kicked . | . . . Crushed . | . . . Highest Temperature 90 | 18 90 27 Average Temperature 25 | 12 26 15 Received Heat Transfer 513 | . 279 234 Siege Activations . | . . . Martial Activations . | . . . Shielding Activations . | . . . Robots Disrupted . | . . . Combat Hostiles . | . . . Robots Corrupted . | . . . Combat Hostiles . | . . . Parts Fried 1 | . 1 . Impact Corruptions . | . . . Robots Melted . | . . . Combat Hostiles . | . . . Parts Melted 1 | . . 1 Heat Transferred 850 | 25 200 625 Parts Sabotaged . | . . . Parts Stolen . | . . . Parts Stripped . | . . . Power Chain Reactions . | . . . Alert | -11 -10 -10 ------- Run | Yrd Mat Sub Maximum Alert Level . | . . . Low Security (%) 100 | 100 100 . Level 1 . | . . . Level 2 . | . . . Level 3 . | . . . Level 4 . | . . . Level 5 . | . . . High Security . | . . . Max Security . | . . . Peak Influence 171 | 5 171 . Initial . | . . . Average 58 | . 62 . Influence Increases 628 | 5 408 215 Destroy 0b10 Robot/C 380 | . 300 80 Destroy 0b10 Robot/NC 15 | 5 10 . Destroy Leader 62 | . 62 . Trap Triggered on 0b10 10 | . 10 . Successful Hack 10 | . 10 . Disable Machine 15 | . 15 . Destroy Structure 1 | . 1 . Lose Combat Pursuer 135 | . . 135 Influence Decreases 540 | 5 299 236 Entered New Map 53 | . . 53 Time Decay 417 | 5 249 163 Lost Part 70 | . 50 20 Squads Dispatched 4 | . 4 . Investigation 2 | . 2 . Extermination . | . . . Reinforcement 2 | . 2 . Assault . | . . . Garrison . | . . . Intercept . | . . . Searches Triggered . | . . . Construction Impeded . | . . . Haulers Reinforced . | . . . Active Scanning Responses . | . . . Cargo Convoy Interrupts . | . . . Stealth | -11 -10 -10 --------- Run | Yrd Mat Sub Distress Signals . | . . . Communications Jammed . | . . . Distress Signals . | . . . Times Spotted 38 | . 21 17 Peak Tracking Total 6 | . 6 5 Tactical Retreats 4 | . . 4 Traps | -11 -10 -10 ------- Run | Yrd Mat Sub Traps Triggered . | . . . Indirectly . | . . . Trap Hack Attempts . | . . . Triggered . | . . . Disarmed . | . . . Reprogrammed 6 | . 6 . Reused 1 | . 1 . Traps Extracted . | . . . Installed . | . . . Triggered 1 | . 1 . Machines | -11 -10 -10 ---------- Run | Yrd Mat Sub Machines Disabled 2 | . 1 1 Max in Single Turn 1 | . 1 1 Machines Repaired . | . . . Machines Dismantled . | . . . Machines Sabotaged . | . . . Overloaded Fab Kills . | . . . Hacking | -11 -10 -10 --------- Run | Yrd Mat Sub Machines Accessed 7 | . 5 2 Terminals 5 | . 5 . Fabricators . | . . . Repair Stations . | . . . Recycling Units . | . . . Scanalyzers . | . . . Garrison Access . | . . . Total Hacks 25 | . 13 12 Successful 18 | . 6 12 Failed 7 | . 7 . Catastrophic 1 | . 1 . Database Lockouts . | . . . Manual . | . . . Terminals 13 | . 13 . Fabricators . | . . . Repair Stations . | . . . Recycling Units . | . . . Scanalyzers . | . . . Garrison Access . | . . . Terminal Hacks 18 | . 6 12 Record 12 | . 1 11 Robot Analysis 1 | . 1 . Emergency Access Points 2 | . 2 . Reprogram Traps 1 | . 1 . Zone Layout 1 | . 1 . Proto ID Catalog 1 | . . 1 Fabricator Hacks . | . . . Repair Station Hacks . | . . . Recycling Unit Hacks . | . . . Scanalyzer . | . . . Garrison Access Hacks . | . . . Unauthorized Hacks . | . . . Terminals . | . . . Fabricators . | . . . Repair Stations . | . . . Recycling Units . | . . . Scanalyzers . | . . . Garrison Access . | . . . Data Cores Recovered . | . . . Used . | . . . Hacking Detections 5 | . 5 . Full Trace Events 3 | . 3 . Feedback Events . | . . . Feedback Blocked . | . . . Robot Schematics Acquired . | . . . Robots Built . | . . . Authchips . | . . . Time . | . . . Total Robot Build Rating . | . . . Part Schematics Acquired . | . . . Parts Built . | . . . Authchips . | . . . Time . | . . . Total Part Build Rating . | . . . Part Studies Acquired . | . . . Parts Repaired . | . . . Time . | . . . Parts Recycled . | . . . Recycled Matter . | . . . Retrieved Matter . | . . . Retrieved Components . | . . . Parts Scanalyzed . | . . . Part Schematics Acquired . | . . . Parts Damaged . | . . . Bothacking | -11 -10 -10 ------------ Run | Yrd Mat Sub Used RIF Installer . | . . . Robots Hacked . | . . . Non-combat . | . . . Combat . | . . . Robot Hacks Applied . | . . . Relay Couplers Released . | . . . Fabnet Peak Effective % . | . . . Robots Rewired . | . . . Allies Hacked . | . . . Hacks Repelled . | . . . Allies | -11 -10 -10 -------- Run | Yrd Mat Sub Total Allies . | . . . Largest Group . | . . . Highest-Rated Group . | . . . Highest-Rated Ally . | . . . Total Orders . | . . . Ally Attacks . | . . . Total Damage . | . . . Kills . | . . . Allies Corrupted . | . . . Allies Melted . | . . . Intel | -11 -10 -10 ------- Run | Yrd Mat Sub Active Infowar (turns) 881 | . . 881 T.N.C. 881 | . . 881 Robot Analysis Total 1 | . 1 . Derelict Logs Recovered 3 | . . 3 Drone Launches . | . . . Drone Recoveries . | . . . Exploration | -11 -10 -10 ------------- Run | Yrd Mat Sub Turns Passed 2620 | 86 1175 1359 Spaces Moved 1427 | 48 403 976 Core 266 | 21 130 115 Treads 294 | 22 272 . Legs 7 | . . 7 Wheels 859 | 5 . 854 Hover . | . . . Flight 1 | . 1 . Fastest Speed 50 | 50 160 90 Average Speed 131 | 123 179 112 Slowest Speed 250 | 160 250 200 Overloaded Moves . | . . . Propulsion Burnouts . | . . . Robots Hopped . | . . . Potential Cave-ins . | . . . Cave-ins Triggered . | . . . Exploration Rate (%) 44 | 4 66 64 Regions Visited 2 Branch Regions 1 Pre-discovered Areas 4 | . . 4 Known Exits Taken 1 | . 1 . Unknown Exits Taken 1 | 1 . . Scrap Searched 5 | . . 5 Spaces Dug . | . . . Terrain Destroyed . | . . . Melee . | . . . Projectile . | . . . AOE . | . . . Terrain Rammed . | . . . Walls Destroyed . | . . . Machines Disabled . | . . . Actions | -11 -10 -10 --------- Run | Yrd Mat Sub Total 1922 | 72 704 1146 Wait 286 | . 198 88 Move 1425 | 47 402 976 Hop . | . . . Pick Up 25 | 12 5 8 Fast Attach 7 | 3 2 2 Attach 14 | 6 2 6 Detach . | . . . Swap 11 | 1 5 5 Drop 7 | 2 3 2 Fire 135 | 1 85 49 Melee 6 | . 1 5 Ram 1 | . 1 . Kick . | . . . Crush . | . . . Escape Stasis . | . . . Rewire 5 | . . 5 Trap . | . . . Miscellaneous . | . . . Route ------- -11/Scrapyard -10/Materials (discovered 3 exits: *Mat x2 / *Sub) -10/Subcaves (discovered 2 exits: *Mat / [*Rec]) History --------- Turn | Location | Event 6 | -11/Scrapyard | Discovered new exit (range 16) 87 | -11/Scrapyard | Entered Materials 312 | -10/Materials | Build established: Mutant 685 | -10/Materials | Discovered new exit (range 16) 694 | -10/Materials | Destroyed 7 combat bots 776 | -10/Materials | Identified exit to Materials 1019 | -10/Materials | Discovered exit to Materials (range 16) 1115 | -10/Materials | Lost 3 parts (1p1n1w) 1240 | -10/Materials | Discovered new exit (range 9) 1258 | -10/Materials | Identified exit to Subcaves 1262 | -10/Materials | Entered Subcaves 1274 | -10/Subcaves | Discovered new exit (range 11) 1282 | -10/Subcaves | Learned location of Storage (-7) 1294 | -10/Subcaves | Identified exit to Materials 1322 | -10/Subcaves | Visited Clippyterm 1328 | -10/Subcaves | Learned location of Section 7 (-2) 1487 | -10/Subcaves | Learned location of Zion (-7) 1588 | -10/Subcaves | Core integrity fell below 50% 1662 | -10/Subcaves | Visited 4L-MR0's lab 1676 | -10/Subcaves | Found Meta Core 1678 | -10/Subcaves | Attached Meta Core, gained temporary slots: Propulsion, Utility, Weapon 1805 | -10/Subcaves | Shifting Twisted Machinery released Sub. Machine Gun 1855 | -10/Subcaves | Shifting Twisted Machinery released Sub. Beam Cannon 1948 | -10/Subcaves | A swath of the cavern ceiling suddenly collapsed 2050 | -10/Subcaves | Build established: Skirmisher 2109 | -10/Subcaves | Shifting Twisted Machinery released Hvy. Riot Gun 2138 | -10/Subcaves | Shifting Twisted Machinery released Piercing Trap 2260 | -10/Subcaves | Core integrity fell below 20% 2289 | -10/Subcaves | Discovered new exit (range 9) 2411 | -10/Subcaves | Build established: Mutant 2423 | -10/Subcaves | A swath of the cavern ceiling suddenly collapsed 2621 | -10/Subcaves | Destroyed by 5J-MAJ(R) with Subdweller Beam Cannon Last Messages --------------- 02251_ Switching to secondary target: S-10 Pest. 02254_ S-10 Pest destroyed. 02260_ Destroyed Flight Unit. 02263_ Lgt. Assault Rifle fries itself beyond repair. 02263_ S-10 Pest destroyed. 02265_ Lgt. Ion Engine fries itself beyond repair. 02272_ Flight Unit fries itself beyond repair. 02272_ Broken Sub. Monowheel destroyed. 02276_ Lgt. Assault Rifle fries itself beyond repair. 02289_ EXIT=FOUND 02290_ Wheel destroyed. 02290_ Temporary Propulsion slot lost. 02314_ Acquired 12 matter. 02318_ Subatomizers dissect the Sub. Optics. 02342_ LF-YHP(u) builds Twisted Machinery. A swath of the cavern ceiling suddenly collapses. Map ----- +----------------------------------------------------+ | ?## ## #??????????????????????????????? | | ?# #####??????????????????????????????? | | ?# ######?????????????????????????????? | | ?# ##????????????????????????????? | | ## #????????????????????????????? | | # #????????????????????????????? | | ######????????????????????????????? | | ## ##????????????????????????????????? | | ## ###??????????????????????????????? | | ### ##?????????????????????????????? | | # #####?# #???????##????????????????????? | | # #?????### #??????? ???????????????????? | | # ""#??????# #??????? ???????????????????? | | # ####?##???# # ##?????? #???????????????????? | | ##""#??#"?#####" ###???? #???????????????????? | | ##"####"?#"##"" ####? ##??????????????????? | | """##"##"###"""## #? ???????????????????? | | ###"#"###"""###"" ### #???????????????????? | | ##"#""""""#####"## ###### #???????????????????? | | #"#""##" """#"""#######?# #???????????????????? | | ""#"#""##"####"##; #?# #???????????????????? | | """#""####"##"""# ### #???###??????????????? | | ####"##""""#"#"## ## #??# #??????????????? | | ???###"#""#""##" ## #??# ???????????????? | | ?????#""""#"##""## #?? #???????????????? | | ???????#"""######## @#?? #???????????????? | | ???????#####??????# ### #???????????????? | | ??????????????????# ## #???????????????? | | ?????????????????## R## #???????????????? | | ????????????????##""" #????????????????? | | ???????????????##""" ##????????????????? | | ???????????????# "" #### ###???????????????? | | ????????????# """"####??### #???????????????? | | ????????????? #?????????## #??????????????? | | ???????????? ????????????# #??????????????? | | ??????????????????????????? ##??????????????? | | ??????????????????????????? ##???????????????? | | ??????????????????????????? #????????????????? | | ??????????????????????????? ##????????????????? | | ?????????????????????????? ####?????????????????? | | ??????????????????????????#?????????????????????? | | ????????????????????????????????????????????????? | | ????????????????????????????????????????????????? | | ????????????????????????????????????????????????? | | ????????????????????????????????????????????????? | | ????????????????????????????????????????????????? | | ????????????????????????????????????????????????? | | ????????????????????????????????????????????????? | | ????????????????????????????????????????????????? | | ????????????????????????????????????????????????? | +----------------------------------------------------+ Best States ------------- Heat Dissipation 25 Energy Generation 17 Energy Capacity 250 Matter Stores 300 Matter Capacity 300 Sight Range 16 Terrain Scan Density 10 Evasion (%) 42 Recoil Reduction 2 Item Schematics ----------------- None Robot Schematics ------------------ None Fabricated ------------ Nothing Repaired ---------- Nothing Studied --------- None Alien Tech Used ----------------- None Achievements -------------- Use The Force Challenges ------------ None Game ------ Seed DataStormShockpuncher Manual? 0 Play Time 00:20:57 Cumulative 22.7 hours Start 2026.08.30 @ 14:41:15 End 2026.08.30 @ 14:57:29 Sessions 1 Manual Loads 0 Difficulty Rogue Special Mode None Game No. 49 Rogue 32 Adventurer 15 Explorer 2 Win Type - Total 0 Types 0/0/0/0/0/0/0/0/0/0 Lore% 23 Gallery% 21 Achievement% 17 Wizard Run 0 Options --------- Layout 1 ASCII 0 Keyboard 0 Movement Mouse Keybinds 0 Fullscreen 1 Font 24/Smallcaps Map View 50x35 Zoom Use 0% Tactical HUD 1 Map Filters NONE Filters NONE Steam 1 RUN: 9e7ddc7c-9bfc-4ce6-9fc9-98a726573ac6